Cogmind - Beta 14 @@@ ROGUE MODE // 2025.03.23 @ 20:50:46 Player: potator Result: Self-destructed Performance ------------- Evolutions (2) 1000 Regions Visited (3) 600 Robots Destroyed (59) 295 Value Destroyed (1628) 1628 Prototype IDs (5) 100 Alien Tech Used (0) 0 Bonus (63) 63 TOTAL SCORE: 3686 Bonus ------- High Alert Combat Kills 63 Cogmind --------- Core Integrity 323/550 Matter 158/300 Energy 160/160 System Corruption 0% Temperature Cool (9) Movement Core (200) Ox3 Location -8/Materials Parts ------- > --- POWER (1) -------- Light Nuclear Core > --- PROPULSION (2) --- (None) > --- UTILITY (6) ------ Signal Interpreter ECM Suite Hacking Suite Hacking Suite Hacking Suite System Shield > --- WEAPON (2) ------- Light Cannon > --- INVENTORY (5) ---- Cooling System EMP Blaster Peak State ------------ > --- POWER ------------ Cooled Ion Engine > --- PROPULSION ------- Armored Wheel Armored Wheel > --- UTILITY ---------- Signal Interpreter Recoil Stabilizer ECM Suite Hacking Suite Hacking Suite Hacking Suite > --- WEAPON ----------- Beam Rifle Minigun > --- INVENTORY -------- Cooling System System Shield Improved Assault Rifle Light Cannon EMP Blaster [Rating: 27] Favorites ----------- Power Cooled Ion Engine Engine Cooled Ion Engine Power Core Light Nuclear Core Propulsion Armored Wheel Wheel Armored Wheel Utility Signal Interpreter Device ECM Suite Storage Small Storage Unit Processor Signal Interpreter Hackware Hacking Suite Protection Medium Armor Plating Weapon Beam Rifle Energy Gun Beam Rifle Energy Cannon Advanced Beam Cannon Ballistic Gun Heavy Assault Rifle Ballistic Cannon Light Cannon Launcher EMP Blaster Build | -11 -10 -9 -8 ------- Run | Yrd Mat Mat Mat Slots Evolved 4 | . . 2 2 Power . | . . . . Propulsion . | . . . . Utility 4 | . . 2 2 Weapon . | . . . . Parts Attached 47 | 6 10 24 7 Power 7 | 1 1 4 1 Engine 6 | 1 1 4 . Core 1 | . . . 1 Reactor . | . . . . Propulsion 9 | 2 2 5 . Treads . | . . . . Leg . | . . . . Wheel 9 | 2 2 5 . Hover . | . . . . Flight . | . . . . Utility 14 | 1 3 7 3 Device 6 | . 2 4 . Storage 1 | 1 . . . Processor 1 | . 1 . . Hackware 4 | . . 1 3 Protection 2 | . . 2 . Artifact . | . . . . Weapon 17 | 2 4 8 3 Energy Gun 2 | . . 1 1 Energy Cannon 3 | . 2 1 . Ballistic Gun 9 | 2 1 5 1 Ballistic Cannon 1 | . . . 1 Launcher 2 | . 1 1 . Special Weapon . | . . . . Impact Weapon . | . . . . Slashing Weapon . | . . . . Piercing Weapon . | . . . . Special Melee Weapon . | . . . . Unidentified Prototypes 4 | . . 3 1 Parts Lost 16 | . 2 8 6 Power 3 | . . 2 1 Propulsion 2 | . 1 . 1 Utility 4 | . . 4 . Weapon 7 | . 1 2 4 Highest Loss Streak 6 | . 1 2 6 To Critical Strikes . | . . . . Average Slot Usage (%) 93 | . 97 93 87 Engine 9 | . 14 8 5 Wheel 22 | . 28 22 10 Device 17 | . 22 17 9 Processor 9 | . 2 11 9 Hackware 9 | . . 9 34 Protection 1 | . . 2 . Energy Gun 4 | . . 5 7 Energy Cannon 4 | . 6 4 . Ballistic Gun 13 | . 21 11 8 Peak Build Rating 27 | 6 7 21 27 Average Rating 14 | 3 6 16 23 On Entrance 8 | . 6 7 21 Naked Turns . | . . . . Heaviest Build 24 | 11 12 24 17 Greatest Support 28 | 26 26 28 24 Greatest Overweight (x) 2 | . . . 2 Average Overweight (x) . | . . . . Largest Inventory Capacity 8 | 8 8 5 5 Average Capacity 5 | 7 5 5 5 Most Carried 5 | 5 5 5 5 Average Carried 3 | 1 3 3 3 Final Capacity 8 | 8 5 5 5 Final Carried 5 | . 4 5 2 Class Distribution -------------------- 77% | Mutant 10% | Infiltrator-Skirmisher 6% | Scavenger-Mutant 6% | Hacker-Mutant Dominant Class ---------------- Mutant | -10/Materials Mutant | -9/Materials Hacker-Mutant | -8/Materials Resources | -11 -10 -9 -8 ----------- Run | Yrd Mat Mat Mat Matter Collected 1041 | 215 142 630 54 Remotely . | . . . . Salvage Created 2041 | . 403 1362 276 Parts 129 | . 30 84 15 Haulers Intercepted 2 | . 1 1 . Recyclers Shooed . | . . . . Parts Field Recycled . | . . . . Retrieved Matter . | . . . . Parts Self-Destructed . | . . . . Prevented . | . . . . Kills | -11 -10 -9 -8 ------- Run | Yrd Mat Mat Mat Combat Hostiles Destroyed 44 | . 10 28 6 Guns 21 | . 4 11 6 Cannons 19 | . 4 15 . AOE 4 | . 2 2 . Classes Destroyed 9 | . 6 2 1 Worker 3 | . 1 1 1 Builder 2 | . 1 1 . Hauler 2 | . 1 1 . Watcher 8 | . 3 5 . Swarmer 10 | . 3 6 1 Grunt 24 | . 7 13 4 Brawler 1 | . . 1 . Duelist 1 | . . . 1 Sentry 8 | . . 8 . Best Kill Streak 7 | . 5 7 5 Combat Bots Only 6 | . 5 6 5 Max Kills in Single Turn 3 | . 3 2 1 Gunslinging 1 | . 1 . . Exploded 1 | . 1 1 . Melee . | . . . . Uniques/NPCs Destroyed . | . . . . Combat | -11 -10 -9 -8 -------- Run | Yrd Mat Mat Mat Hostile Shots Fired 267 | . 30 148 89 Missed 86 | . 13 48 25 Damage Taken 2725 | . 519 1221 985 Core 638 | . 223 188 227 Absorbed by Shields . | . . . . Core Remaining (%) 54 | 100 10 53 . Volleys Fired 148 | . 27 83 38 Largest 2 | . 2 2 2 Hottest 92 | . 80 91 92 Shots Fired 277 | . 54 162 61 Gun 200 | . 40 107 53 Cannon 72 | . 11 53 8 Launcher 5 | . 3 2 . Special . | . . . . Kinetic 169 | . 40 86 43 Thermal 103 | . 11 74 18 Explosive 3 | . 3 . . Electromagnetic 2 | . . 2 . Robot Hit Streak 21 | . 7 21 17 Robot Miss Streak 5 | . 5 4 2 Penetration Max . | . . . . Secondary Targets 3 | . 1 1 1 Max Gunslinging Chain 1 | . 1 1 1 Shots Hit Robots 179 | . 28 99 52 Core Hits 87 | . 19 52 16 Critical Kills 1 | . 1 . . Critical Parts Destroyed 1 | . . 1 . Critical Strikes 4 | . 1 1 2 Burn 2 | . . . 2 Destroy 2 | . 1 1 . Melee Attacks . | . . . . Impact . | . . . . Slashing . | . . . . Piercing . | . . . . Sneak Attacks . | . . . . Combat Hostiles . | . . . . Follow-up Attacks . | . . . . Damage Inflicted 3579 | . 860 1843 876 Guns 1951 | . 238 954 759 Cannons 1001 | . 106 778 117 Explosions 626 | . 516 110 . Melee . | . . . . Ramming 1 | . . 1 . Kinetic 1622 | . 238 770 614 Thermal 1330 | . 106 962 262 Explosive 516 | . 516 . . Electromagnetic 110 | . . 110 . Impact . | . . . . Slashing . | . . . . Piercing . | . . . . Highest Corruption . | . . . . Average Corruption . | . . . . Corruption Purged . | . . . . Corruption Blocked . | . . . . Overload Shots . | . . . . Overflow Damage . | . . . . Projectiles . | . . . . Explosions . | . . . . Melee . | . . . . Knockbacks 1 | . . . 1 Impact . | . . . . Kinetic 1 | . . . 1 Secondary . | . . . . Self-Inflicted Damage 188 | . 188 . . Shots 2 | . 2 . . Rammed 1 | . . 1 . Targets Rammed 1 | . . 1 . Kicked . | . . . . Crushed . | . . . . Highest Temperature 313 | . 126 313 153 Average Temperature 66 | . 46 73 56 Received Heat Transfer 993 | . 90 426 477 Siege Activations . | . . . . Robots Corrupted . | . . . . Combat Hostiles . | . . . . Parts Fried . | . . . . Impact Corruptions . | . . . . Robots Melted . | . . . . Combat Hostiles . | . . . . Parts Melted 4 | . . 1 3 Heat Transferred 2849 | . 222 1887 740 Parts Sabotaged . | . . . . Parts Stolen . | . . . . Parts Stripped . | . . . . Power Chain Reactions . | . . . . Alert | -11 -10 -9 -8 ------- Run | Yrd Mat Mat Mat Peak Influence 479 | . 329 479 264 Initial 155 | . . 59 155 Average 273 | . 101 331 202 Maximum Alert Level 2 | . 1 2 1 Low Security (%) 32 | 100 80 16 50 Level 1 46 | . 19 54 49 Level 2 21 | . . 29 . Level 3 . | . . . . Level 4 . | . . . . Level 5 . | . . . . High Security . | . . . . Max Security . | . . . . Squads Dispatched 5 | . 1 3 1 Investigation 3 | . 1 2 . Extermination . | . . . . Reinforcement 1 | . . 1 . Assault . | . . . . Garrison 1 | . . . 1 Intercept . | . . . . Searches Triggered . | . . . . Construction Impeded . | . . . . Haulers Reinforced . | . . . . Active Scanning Responses . | . . . . Cargo Convoy Interrupts . | . . . . Stealth | -11 -10 -9 -8 --------- Run | Yrd Mat Mat Mat Distress Signals 3 | . . 3 . Communications Jammed . | . . . . Distress Signals . | . . . . Times Spotted 67 | . 14 43 10 Peak Tracking Total 6 | . 4 5 6 Tactical Retreats 6 | . . 5 1 Traps | -11 -10 -9 -8 ------- Run | Yrd Mat Mat Mat Traps Triggered 1 | . 1 . . Indirectly . | . . . . Trap Hack Attempts . | . . . . Triggered . | . . . . Disarmed . | . . . . Reprogrammed . | . . . . Reused . | . . . . Traps Extracted . | . . . . Installed . | . . . . Triggered . | . . . . Machines | -11 -10 -9 -8 ---------- Run | Yrd Mat Mat Mat Machines Disabled 3 | . 2 1 . Max in Single Turn 2 | . 2 1 . Machines Repaired . | . . . . Machines Dismantled . | . . . . Machines Sabotaged . | . . . . Overloaded Fab Kills . | . . . . Hacking | -11 -10 -9 -8 --------- Run | Yrd Mat Mat Mat Machines Accessed 12 | . 4 7 1 Terminals 11 | . 4 6 1 Fabricators . | . . . . Repair Stations . | . . . . Recycling Units . | . . . . Scanalyzers 1 | . . 1 . Garrison Access . | . . . . Total Hacks 35 | . 12 19 4 Successful 19 | . 5 12 2 Failed 16 | . 7 7 2 Catastrophic . | . . . . Database Lockouts . | . . . . Manual . | . . . . Terminals 33 | . 12 17 4 Fabricators . | . . . . Repair Stations . | . . . . Recycling Units . | . . . . Scanalyzers 2 | . . 2 . Garrison Access . | . . . . Terminal Hacks 18 | . 5 11 2 Record 2 | . . 2 . Emergency Access Points 3 | . . 3 . Terminal Index 1 | . 1 . . Locate Traps 4 | . 1 3 . Security Status 1 | . . . 1 Surveillance Status 1 | . . . 1 Hauler Manifests 4 | . 2 2 . Zone Layout 2 | . 1 1 . Fabricator Hacks . | . . . . Repair Station Hacks . | . . . . Recycling Unit Hacks . | . . . . Scanalyzer 1 | . . 1 . Insert Component 1 | . . 1 . Garrison Access Hacks . | . . . . Unauthorized Hacks . | . . . . Terminals . | . . . . Fabricators . | . . . . Repair Stations . | . . . . Recycling Units . | . . . . Scanalyzers . | . . . . Garrison Access . | . . . . Data Cores Recovered . | . . . . Used . | . . . . Hacking Detections 10 | . 4 6 . Full Trace Events 3 | . 2 1 . Feedback Events . | . . . . Feedback Blocked . | . . . . Robot Schematics Acquired . | . . . . Robots Built . | . . . . Authchips . | . . . . Time . | . . . . Total Robot Build Rating . | . . . . Part Schematics Acquired . | . . . . Parts Built . | . . . . Authchips . | . . . . Time . | . . . . Total Part Build Rating . | . . . . Parts Repaired . | . . . . Time . | . . . . Parts Recycled . | . . . . Recycled Matter . | . . . . Retrieved Matter . | . . . . Retrieved Components . | . . . . Parts Scanalyzed . | . . . . Part Schematics Acquired . | . . . . Parts Damaged . | . . . . Bothacking | -11 -10 -9 -8 ------------ Run | Yrd Mat Mat Mat Used RIF Installer . | . . . . Robots Hacked . | . . . . Non-combat . | . . . . Combat . | . . . . Robot Hacks Applied . | . . . . Relay Couplers Released . | . . . . Fabnet Peak Effective % . | . . . . Robots Rewired . | . . . . Allies Hacked . | . . . . Hacks Repelled . | . . . . Allies | -11 -10 -9 -8 -------- Run | Yrd Mat Mat Mat Total Allies . | . . . . Largest Group . | . . . . Highest-Rated Group . | . . . . Highest-Rated Ally . | . . . . Total Orders . | . . . . Ally Attacks . | . . . . Total Damage . | . . . . Kills . | . . . . Allies Corrupted . | . . . . Allies Melted . | . . . . Intel | -11 -10 -9 -8 ------- Run | Yrd Mat Mat Mat Robot Analysis Total . | . . . . Derelict Logs Recovered . | . . . . Drone Launches . | . . . . Drone Recoveries . | . . . . Exploration | -11 -10 -9 -8 ------------- Run | Yrd Mat Mat Mat Turns Passed 2784 | 40 536 2022 186 Spaces Moved 2236 | 38 485 1656 57 Core 16 | 13 . . 3 Treads . | . . . . Legs . | . . . . Wheels 2220 | 25 485 1656 54 Hover . | . . . . Flight . | . . . . Fastest Speed 50 | 50 80 90 90 Average Speed 89 | 76 85 90 92 Slowest Speed 150 | 90 90 95 150 Overloaded Moves . | . . . . Propulsion Burnouts . | . . . . Robots Hopped . | . . . . Cave-ins Triggered . | . . . . Exploration Rate (%) 45 | 3 77 96 7 Regions Visited 3 Branch Regions . Pre-discovered Areas . | . . . . Known Exits Taken 2 | . 1 1 . Unknown Exits Taken 1 | 1 . . . Scrap Searched . | . . . . Spaces Dug . | . . . . Terrain Destroyed 59 | . 59 . . Melee . | . . . . Projectile . | . . . . AOE 59 | . 59 . . Terrain Rammed . | . . . . Walls Destroyed . | . . . . Machines Disabled . | . . . . Actions | -11 -10 -9 -8 --------- Run | Yrd Mat Mat Mat Total 2760 | 48 553 2026 133 Wait 271 | . 21 224 26 Move 2233 | 37 484 1655 57 Hop . | . . . . Pick Up 39 | 5 9 21 4 Fast Attach 4 | 1 . 3 . Attach 25 | 5 4 9 7 Detach 1 | . . 1 . Swap 19 | . 6 13 . Drop 19 | . 2 16 1 Fire 148 | . 27 83 38 Melee . | . . . . Ram 1 | . . 1 . Kick . | . . . . Crush . | . . . . Escape Stasis . | . . . . Rewire . | . . . . Trap . | . . . . Miscellaneous . | . . . . Route ------- -11/Scrapyard -10/Materials (discovered 5 exits: *Mat x2 / [*Min x2] / [Sub]) -9/Materials (discovered 4 exits: *Mat x2 / *Min x2) -8/Materials History --------- Turn | Location | Event 21 | -11/Scrapyard | Discovered new exit (range 16) 41 | -11/Scrapyard | Entered Materials 69 | -10/Materials | Discovered new exit (range 10) 93 | -10/Materials | Discovered new exit (range 9) 252 | -10/Materials | Discovered new exit (range 15) 304 | -10/Materials | Build established: Mutant 335 | -10/Materials | Core integrity fell below 50% 350 | -10/Materials | Discovered new exit (range 9) 464 | -10/Materials | Discovered new exit (range 12) 484 | -10/Materials | Identified exit to Materials 550 | -10/Materials | Core integrity fell below 20% 577 | -10/Materials | Entered another Materials area 577 | -9/Materials | Evolved 2 slots: Utility x2 812 | -9/Materials | Discovered new exit (range 6) 816 | -9/Materials | Identified exit to Mines 901 | -9/Materials | Discovered exit to Mines (range 7) 1071 | -9/Materials | Discovered new exit (range 11) 1080 | -9/Materials | Identified exit to Materials 1348 | -9/Materials | Discovered exit to Materials (range 16) 2599 | -9/Materials | Entered another Materials area 2599 | -8/Materials | Evolved 2 slots: Utility x2 2751 | -8/Materials | Garrison activated, responded to threat 2785 | -8/Materials | Self-destructed Last Messages --------------- K-01 Serf collects debris. S-10 Pest destroyed. R-06 Scavenger collects Carbon-fiber Leg. K-01 Serf collects debris. R-06 Scavenger collects Imp. Heat Sink. K-01 Serf collects debris. R-06 Scavenger collects Imp. Aluminum Leg. K-01 Serf collects debris. G-47 Trooper calls for garrison reinforcements. ALERT: Activating Garrison Access M001. K-01 Serf destroyed. Imp. Assault Rifle destroyed. Lgt. Nuclear Core melted. Imp. Heat Sink melted. G-47 Trooper destroyed. Acquired Lgt. Nuclear Core. G-47 Trooper knocked back. Hvy. Laser destroyed. R-06 Scavenger collects Adv. Heat Sink. R-06 Scavenger collects Wheel. Map ----- +----------------------------------------------------+ | ?????????????????????????????????????????????????? | | ?????????????????????????????????????????????????? | | ?????????????????????????????????????????????????? | | ?????????????????????????????????????????????????? | | ?????????????????????????????????????????????????? | | ?????????????????????????????????????????????????? | | ?????????????????????????????????????????????????? | | ?????????????????????????????????????????????????? | | ?????????????????????????????????????????????????? | | ?????????????????????????????????????????????????? | | ?????????????????????????????????????????????????? | | ?????????????????????????????????????????????????? | | ?????????????????????????????????????????????????? | | ?????????????????????????????????????????????????? | | ?????????????????????????????????????????????????? | | ?????????????????????????????????????????????????? | | ?????????????????????????????????????????????????? | | ?????????????????????????????????????????????????? | | ?????????????????????????????????????????????????? | | ?????????????????????????????????????????????????? | | ??????????????????????????????????????????????#### | | ??????????????????????????????????????????????# | | ??????????????????????########?????????######## | | ????????????????????#?# #?????????+ T | | ????????????????????# # [= #?????????######## | | ??????????????##+#### #%=@ # #####+#????????# | | ????????# %+%== [#? #??????#####+ | | ????????# #### #g!% #??# #??????# | | ????????????????????# #=[%% #??# ######## | | ????????????????????# ##+#####??# + """ | | ????????????????????# %#??????# ##### """ | | ????????????????????# #??????# #???# """ | | ????????????????????#### #??????# #???# | | ???????????????????????# ######## #???# | | ???????????????????????# #???# | | ???????????????????????##################???###### | | ?????????????????????????????????????????????????? | | ?????????????????????????????????????????????????? | | ?????????????????????????????????????????????????? | | | | | | | | | | | | | | | | | | | | | | | +----------------------------------------------------+ Best States ------------- Heat Dissipation 31 Energy Generation 14 Energy Capacity 280 Matter Stores 300 Matter Capacity 300 Sight Range 16 Robot Scan Range 14 Terrain Scan Density 10 ECM Strength 1 Armor Coverage 225 Evasion (%) 50 Recoil Reduction 4 Offensive Hacking 30 Defensive Hacking 10 Item Schematics ----------------- None Robot Schematics ------------------ None Fabricated ------------ Nothing Alien Tech Used ----------------- None Achievements -------------- None Challenges ------------ None Game ------ Seed IntegrityCompanionDiverter Manual? 0 Play Time 00:34:15 Cumulative 15.2 hours Start 2025.03.23 @ 20:12:12 End 2025.03.23 @ 20:50:46 Sessions 1 Manual Loads 0 Difficulty Rogue Special Mode None Game No. 30 Rogue 30 Adventurer 0 Explorer 0 Win Type - Total 0 Types 0/0/0/0/0/0/0/0/0 Lore% 9 Gallery% 17 Achievement% 14 Wizard Run 0 Options --------- Layout 1 ASCII 0 Keyboard 0 Movement Mouse Keybinds 0 Fullscreen 2 Font 24/Smallcaps Map View 50x35 Zoom Use 0% Tactical HUD 0 Map Filters NONE Filters NONE Steam 1 RUN: 73d08eb8-5dbb-493c-b4b3-c3a0b3f6c89e